[Event "Marmaris Icmeler-IM May 2022"]
[Site "Icmeler"]
[Date "2022.05.08"]
[Round "8.1"]
[White "Odeev, Handszar"]
[Black "Hereklioglu, Sude"]
[Result "1/2-1/2"]
[ECO "B56"]
[WhiteElo "2305"]
[BlackElo "1918"]
[Annotator "TA"]
[PlyCount "58"]
[EventDate "2022.05.05"]
[EventType "schev"]
[EventCountry "TUR"]
[SourceTitle "playchess.com"]
[Source "ChessBase"]
[SourceQuality "1"]
[TimeControl "5400+30"]

{[%evp 9,58,18,26,4,0,-9,4,-2,42,39,34,13,55,0,24,-2,0,0,0,-91,-114,-122,-125,-188,-170,-318,-262,-315,-260,-279,-246,-245,-242,-272,-284,-533,-558,-466,0,0,0,-598,0,0,0,0,0,0,0,0,0]} 1. e4 {[%emt 0:17:00]} c5 {[%emt 0:03:00]} 2. Nf3 {[%emt 0:01:30]} Nc6 {[%emt 0:01:30]} 3. d4 {[%emt 0:05:30]} cxd4 {[%emt 0:00:30]} 4. Nxd4 {[%emt 0:00:00]} Nf6 {[%emt 0:00:30]} 5. Nc3 {[%emt 0:01:00]} d6 {[%emt 0:03:30]} 6. h4 {[%emt 0:19:30] B56: Classical Sicilian: Unusual Lines.} e5 {[%emt 0:05:30]} 7. Nb3 {[%emt 0:12:30]} Be6 {[%emt 0:03:30]} 8. Bg5 {[%emt 0:01:30] [#]} h6 $146 {[%emt 0:06:30]} ({Predecessor:} 8... Be7 9. Bxf6 Bxf6 10. g3 O-O 11. Qd2 a5 12. a4 Bxb3 13. cxb3 Nd4 14. Qd1 Be7 {1-0 (31) Sychev,K (2572)-Durarbayli,V (2606) Chess.com INT 2021}) 9. Bxf6 {[%emt 0:00:30]} Qxf6 {[%emt 0:00:00]} 10. g3 {[%emt 0:05:30]} Rc8 {[%emt 0:05:00]} 11. Be2 {[%emt 0:11:30]} ({White should try} 11. Bh3 $14) 11... a6 {[%emt 0:06:30]} 12. O-O {[%emt 0:03:07]} h5 {[%emt 0:05:30]} 13. Nd5 {[%emt 0:02:37]} Qh6 {[%emt 0:03:30]} 14. f4 {[%emt 0:03:43] Against g5} (14. Kg2 $11) 14... exf4 $17 {[%emt 0:02:30]} 15. Nxf4 {[%emt 0:03:38][%cal Re2h5]} g5 $1 {[%emt 0:01:30]} 16. Nxh5 {[%emt 0:02:16]} (16. Nxe6 $17 fxe6 17. Qd2) 16... gxh4 $1 $19 {[%emt 0:00:30][%cal Bg5h4,Bh4g3,Bg3g2][%mdl 32]} 17. Kg2 {[%emt 0:03:39]} (17. Nf6+ Kd8 18. g4 Qe3+ 19. Rf2 Qg3+ 20. Rg2 Qe5) (17. g4 $142) 17... hxg3 {[%emt 0:09:30]} 18. c3 {[%emt 0:01:10]} Ne5 {[%emt 0:02:30][%cal Bc6e5,Be5g6,Bg6h4][%mdl 32]} 19. Nd4 {[%emt 0:01:58]} Ng6 {[%emt 0:09:30]} 20. Nxe6 {[%emt 0:01:44]} fxe6 {[%emt 0:01:30]} 21. Qb3 {[%emt 0:00:19]} Nh4+ {[%emt 0:06:30]} 22. Kh3 $2 {[%emt 0:00:28] [#]} (22. Kxg3 Rc7 23. Rf4 (23. Kxh4 $2 Rg7 $19) 23... Qg6+ 24. Bg4 Rxh5 25. Raf1) 22... g2 $1 {[%emt 0:17:15]} 23. Rf4 {[%emt 0:00:37] [#]} (23. Rf6 Qe3+) 23... Be7 $2 {[%emt 0:01:01]} (23... Rc5 $1 $19 24. Bg4 (24. Qxb7 $2 Ng6 $19) (24. Rxh4 Be7) 24... Rh7 $1) 24. Qxb7 $11 {[%emt 0:00:09] The board is on fire.} Rc5 {[%emt 0:01:29] aiming for ...Ng6.} 25. Qb8+ $4 {[%emt 0:00:49][%mdl 8192] [#]} (25. Qxa6 $11 {and White is okay.} Ng6 26. Bb5+ Kd8 27. Qb6+ Kc8 28. Ba6+ Kd7 29. Bb5+ Kc8 30. Ba6+ Kd7 31. Bb5+ Kc8) 25... Kd7 $2 {[%emt 0:00:08]} (25... Bd8 $1 $19 26. Qxd6 {[#]} Ng6 $1 {[%mdl 512]} 27. Qxe6+ Be7 28. Qf7+ Kd8 29. Kxg2 (29. Rd1+ $2 Kc7 $19) 29... Rf8 30. Rd1+ Kc7 31. Qxf8 Nxf8) 26. Qb7+ {[%emt 0:00:33] The position is equal.} Rc7 {[%emt 0:00:11]} 27. Qxa6 {[%emt 0:00:06]} Nf3 {[%emt 0:03:29]} 28. Bb5+ {[%emt 0:00:50]} Kd8 {[%emt 0:00:04]} 29. Qa8+ {[%emt 0:00:18]} Rc8 {[%emt 0:00:04] Weighted Error Value: White=0.59/Black=0.69} 1/2-1/2

[Event "Marmaris Icmeler-IM May 2022"]
[Site "Icmeler"]
[Date "2022.05.08"]
[Round "8.2"]
[White "Sevdimaliyev, Urfan"]
[Black "Ince, Taylan Ruzgar"]
[Result "1-0"]
[ECO "A16"]
[WhiteElo "2331"]
[BlackElo "2018"]
[Annotator "TA"]
[PlyCount "161"]
[EventDate "2022.05.05"]
[EventType "schev"]
[EventCountry "TUR"]
[SourceTitle "playchess.com"]
[Source "ChessBase"]
[SourceQuality "1"]
[TimeControl "5400+30"]

{[%evp 13,161,21,37,36,47,24,24,23,18,0,0,0,1,0,38,25,20,0,0,8,15,-22,0,0,10,-10,0,-14,-14,-12,-14,-18,-29,-10,-16,-62,-64,-65,-27,-33,-38,-47,-14,-20,18,21,20,14,15,15,16,13,10,16,14,0,0,0,0,0,0,0,18,35,33,39,31,33,49,44,62,44,87,27,221,219,300,297,369,368,448,443,475,433,668,668,657,651,596,518,5000,5277,5089,4916,4992,2739,6552,2397,5389,822,2149,2077,29973,29975,29975,29974,29973,0,29975,29974,29977,29977,29977,29969,29975,29973,29972,29973,29975,29976,29976,29977,29977,29979,29979,29980,29980,29981,29981,29980,29980,29981,29981,29982,29982,29983,29983,29983,29985,29986,29986,29986,29986,29986,29985,29986,29986,29987,29987,29988]} 1. c4 {[%emt 0:10:00]} Nf6 {[%emt 0:01:00]} 2. Nc3 {[%emt 0:00:30]} d5 {[%emt 0:00:00]} 3. cxd5 {[%emt 0:00:00]} Nxd5 {[%emt 0:00:00]} 4. g3 {[%emt 0:01:00]} g6 {[%emt 0:00:30]} 5. Bg2 {[%emt 0:00:00]} Nb6 {[%emt 0:00:00]} 6. d3 {[%emt 0:00:00]} Bg7 {[%emt 0:00:00]} 7. Be3 {[%emt 0:00:30]} Nc6 {[%emt 0:01:30][%cal Bb8c6,Bc6d4,Bd4f5][%mdl 32]} 8. Rc1 {[%emt 0:00:30] A16: English Opening: 1...Nf6 with ...d5.} O-O {[%emt 0:00:30]} 9. Qd2 {[%emt 0:00:30]} Nd4 {[%emt 0:11:30]} 10. Bh6 {[%emt 0:00:30] White has an edge.} e5 {[%emt 0:08:30]} 11. h4 {[%emt 0:04:30] [#]} Bxh6 $146 {[%emt 0:08:30]} ({Predecessor:} 11... f5 12. Nf3 c6 13. Bxg7 Nxf3+ 14. Bxf3 Kxg7 15. b4 Qf6 16. a4 Be6 17. b5 Rad8 {1-0 (42) Graf,A (2620)-Figura,A (2416) Dresden 2007}) 12. Qxh6 {[%emt 0:01:30]} Nf5 {[%emt 0:00:00]} 13. Qd2 {[%emt 0:00:30]} Ng7 {[%emt 0:00:00]} 14. Ne4 {[%emt 0:05:30]} f6 {[%emt 0:01:30]} 15. Nc5 {[%emt 0:04:30]} c6 {[%emt 0:01:30]} 16. Nf3 {[%emt 0:06:30][%cal Bg1f3,Bf3d2,Bd2e4][%mdl 32]} Ne6 {[%emt 0:03:30] Prevents d4.} 17. Nb3 {[%emt 0:03:30]} Qe7 {[%emt 0:03:30]} (17... a5 $5) 18. O-O {[%emt 0:02:30]} Rd8 {[%emt 0:00:00]} 19. Qa5 {[%emt 0:05:30]} Bd7 {[%emt 0:05:00]} 20. Nfd2 {[%emt 0:03:30]} Be8 {[%emt 0:03:30]} 21. Ne4 {[%emt 0:03:30]} Nd5 {[%emt 0:04:30]} 22. Qa3 {[%emt 0:06:30]} Qxa3 {[%emt 0:02:30]} 23. bxa3 {[%emt 0:00:30]} b6 {[%emt 0:01:30]} 24. e3 {[%emt 0:05:30]} (24. a4 $11) 24... c5 $15 {[%emt 0:13:30]} 25. Nbd2 {[%emt 0:10:30]} Kf7 {[%emt 0:01:30]} 26. Nc4 {[%emt 0:01:30] [#] Ned6+ is the strong threat.} Ke7 {[%emt 0:00:30] Inhibits Ned6.} 27. Rfe1 {[%emt 0:00:30]} Ndc7 {[%emt 0:13:16]} 28. g4 {[%emt 0:09:46]} Bc6 {[%emt 0:05:43]} 29. g5 {[%emt 0:02:56]} Bxe4 {[%emt 0:01:10]} 30. Bxe4 {[%emt 0:01:14]} Rac8 {[%emt 0:00:24]} 31. gxf6+ {[%emt 0:00:53]} Kxf6 {[%emt 0:00:07]} 32. a4 {[%emt 0:03:15]} Ne8 {[%emt 0:00:41]} 33. Rb1 {[%emt 0:01:59]} Rb8 {[%emt 0:00:34]} 34. Rb2 {[%emt 0:01:39]} Nd6 {[%emt 0:01:41]} 35. Nxd6 {[%emt 0:00:31]} Rxd6 {[%emt 0:00:05]} 36. Rc1 {[%emt 0:02:30]} Ke7 {[%emt 0:01:36]} 37. Kf1 {[%emt 0:00:52]} Kf6 {[%emt 0:01:18]} 38. Ke2 {[%emt 0:00:05]} Rdd8 {[%emt 0:00:45]} 39. Rcb1 {[%emt 0:00:40][%cal Oa4a5]} Nc7 {[%emt 0:00:48]} 40. Rh1 {[%emt 0:01:35]} Nd5 {[%emt 0:00:56]} 41. Rc1 {[%emt 0:00:11] Against Nc3+} Ne7 {[%emt 0:01:15]} 42. a5 {[%emt 0:01:09]} Nf5 {[%emt 0:00:41]} 43. axb6 {[%emt 0:00:23]} ({Better is} 43. Rcb1 $16) 43... axb6 $2 {[%emt 0:00:08] Black is on the road to losing.} (43... Rxb6 $11 {and Black is okay.} 44. Rbc2 Nxh4) 44. Rcb1 $18 {[%emt 0:00:13]} Rd6 {[%emt 0:00:15]} 45. a4 {[%emt 0:00:28][%cal Ba2a4,Ba4a5][%mdl 32] aiming for a5!} Ne7 {[%emt 0:03:30]} 46. a5 {[%emt 0:00:18]} Nc8 {[%emt 0:00:01]} 47. Rb5 {[%emt 0:01:30]} Ke6 {[%emt 0:02:11] [#]} 48. Rxc5 $3 {[%emt 0:00:39][%mdl 512]} Na7 {[%emt 0:00:10]} (48... b5 $142 49. Rcxb5 Rxb5 50. Rxb5 Na7) (48... bxc5 49. Rxb8) 49. Rc7 {[%emt 0:00:36]} Rd7 {[%emt 0:00:07]} 50. Rxd7 {[%emt 0:00:40]} Kxd7 {[%emt 0:00:02]} 51. Rxb6 {[%emt 0:00:32]} Rxb6 {[%emt 0:00:06]} (51... Kc7 $142 52. Re6 Nb5 53. Re7+ Kd6) 52. axb6 {[%emt 0:00:01][%mdl 4096] Endgame KB-KN} Nb5 {[%emt 0:00:05]} 53. b7 {[%emt 0:00:24]} Kc7 {[%emt 0:00:04]} 54. Kf3 {[%emt 0:00:15] Threatens to win with Kg4.} Nc3 {[%emt 0:00:10]} 55. Kg3 {[%emt 0:00:53]} (55. Kg4 $142 Nb5 56. Kg5) 55... Nd1 {[%emt 0:00:11]} 56. Bd5 {[%emt 0:00:57]} (56. Kg4 $142 h6 57. Bxg6 Nxf2+ 58. Kh5) 56... h6 {[%emt 0:00:18]} 57. Be4 {[%emt 0:00:28] Black must now prevent f4.} g5 {[%emt 0:00:07]} 58. hxg5 {[%emt 0:00:14]} hxg5 {[%emt 0:00:04]} 59. Bf3 {[%emt 0:00:15]} Nb2 {[%emt 0:00:02]} 60. Be4 {[%emt 0:00:42]} Nd1 {[%emt 0:00:04]} 61. Kf3 {[%emt 0:00:31] White mates.} Nc3 {[%emt 0:00:22]} 62. Kg4 {[%emt 0:01:10]} Nd1 {[%emt 0:00:06]} 63. Kg3 {[%emt 0:00:00]} Kb8 {[%emt 0:01:05]} 64. Bf3 {[%emt 0:00:00]} Nb2 {[%emt 0:00:05]} 65. d4 {[%emt 0:00:05]} exd4 {[%emt 0:00:11]} 66. exd4 {[%emt 0:00:02]} Nd3 {[%emt 0:00:23]} 67. Be4 {[%emt 0:00:12]} Nf4 {[%emt 0:00:32]} 68. Kg4 {[%emt 0:00:30]} Ne6 {[%emt 0:00:04]} 69. f3 {[%emt 0:00:30][%cal Bf2f3,Bf3f4,Bf4f5,Bf5f6][%mdl 32]} Nxd4 {[%emt 0:00:41]} 70. Kxg5 {[%emt 0:00:06]} Ne6+ {[%emt 0:01:22]} 71. Kg4 {[%emt 0:00:04]} Nc5 {[%emt 0:00:15]} 72. Bd5 {[%emt 0:00:10]} Kc7 {[%emt 0:00:04]} 73. f4 {[%emt 0:00:09]} Nd7 {[%emt 0:00:04]} 74. Kg5 {[%emt 0:00:23]} Kd6 {[%emt 0:00:05]} 75. Bf3 {[%emt 0:00:14]} Ke7 {[%emt 0:00:14]} 76. f5 {[%emt 0:00:07]} Kf7 {[%emt 0:00:08]} 77. Bh5+ {[%emt 0:00:43]} Kf8 {[%emt 0:00:10]} 78. f6 {[%emt 0:00:11]} Nb8 {[%emt 0:00:14]} 79. Kf5 {[%emt 0:00:23]} Nc6 {[%emt 0:00:12]} 80. Ke4 {[%emt 0:00:19]} Nb8 {[%emt 0:00:18]} 81. Kd5 {[%emt 0:00:36] Weighted Error Value: White=0.09 (flawless) /Black=0.42} 1-0

[Event "Marmaris Icmeler-IM May 2022"]
[Site "Icmeler"]
[Date "2022.05.08"]
[Round "8.3"]
[White "Toufighi, Homayoon"]
[Black "Taspinar, Yanki"]
[Result "0-1"]
[ECO "C26"]
[WhiteElo "2439"]
[BlackElo "2176"]
[Annotator "TA"]
[PlyCount "66"]
[EventDate "2022.05.05"]
[EventType "schev"]
[EventCountry "TUR"]
[SourceTitle "playchess.com"]
[Source "ChessBase"]
[SourceQuality "1"]
[TimeControl "5400+30"]

{[%evp 11,66,0,7,-57,-56,-44,-43,-77,-65,-122,-119,-152,-153,-186,-185,-205,-134,-133,-116,-108,-115,-155,-152,-158,-154,-229,-197,-231,-234,-216,-210,-263,0,-151,0,-277,-96,-277,-302,-303,-302,-301,-305,-304,-304,-306,-299,-376,-263,-360,-354,-477,-407,-393,-397,-911,-889]} 1. e4 {[%emt 0:12:00]} e5 {[%emt 0:04:00]} 2. Nc3 {[%emt 0:00:30]} Nf6 {[%emt 0:00:30]} 3. g3 {[%emt 0:03:30]} d5 {[%emt 0:00:30]} 4. exd5 {[%emt 0:00:00]} Nxd5 {[%emt 0:00:00]} 5. Bg2 {[%emt 0:00:00]} Nxc3 {[%emt 0:00:00]} 6. bxc3 {[%emt 0:00:30]} Nc6 {[%emt 0:00:30]} 7. Ne2 {[%emt 0:00:30] C26: Vienna Game: 2...Nf6, sidelines .} (7. Nf3 $11) 7... Be6 $1 $15 {[%emt 0:01:30]} 8. O-O {[%emt 0:01:30]} Bd5 {[%emt 0:00:00]} 9. f3 {[%emt 0:01:30] Black is slightly better.} Bc5+ {[%emt 0:02:00]} 10. d4 {[%emt 0:01:30]} (10. Kh1 $1 $15) 10... Bb6 $1 $17 {[%emt 0:00:30]} 11. Ba3 {[%emt 0:02:30]} Qf6 {[%emt 0:02:30]} 12. Qd3 {[%emt 0:10:30]} O-O-O $1 {[%emt 0:09:30][%cal Re5d4]} 13. Kh1 {[%emt 0:08:30] [#]} exd4 $146 {[%emt 0:20:30]} ({Predecessor:} 13... h5 14. c4 Be6 15. d5 h4 16. f4 exf4 17. Nxf4 Bf5 18. Bh3 g6 19. Bxf5+ gxf5 {0-1 (32) Laheri,N (1462)-Pujari,R (2127) Bhopal 2017}) 14. Nf4 {[%emt 0:00:30]} Be6 {[%emt 0:00:30]} 15. Nxe6 {[%emt 0:00:30]} Qxe6 {[%emt 0:00:30]} ({Reject} 15... fxe6 $6 16. c4 $11) 16. Rfe1 {[%emt 0:01:30]} Qg6 {[%emt 0:02:30]} 17. Bh3+ {[%emt 0:04:30]} Kb8 {[%emt 0:00:30] And now ...dxc3 would win.} 18. Bf5 {[%emt 0:00:30]} (18. c4 $17 {keeps fighting.}) 18... Qf6 {[%emt 0:00:30]} 19. c4 {[%emt 0:00:00] [#]} Ba5 $1 {[%emt 0:04:30]} ({And not} 19... Ne5 20. Qe4 Nc6 21. Qd3 $17) 20. Re2 {[%emt 0:03:00] [#]} Bb4 $1 {[%emt 0:07:30] ...Bxa3 is the strong threat.} ({Not} 20... Ne5 21. Qe4 Nc6 22. Rd1 $17) 21. Bc1 {[%emt 0:47:30]} Ba5 {[%emt 0:17:30]} (21... Bc3 $19 22. Rb1 Nb4) 22. Ba3 {[%emt 0:00:30]} Bb4 {[%emt 0:00:30]} (22... Ne5 $17 23. Qe4 Nc6) 23. Bc1 $1 $19 {[%emt 0:00:30]} Ne5 $2 {[%emt 0:00:30]} (23... Bc3 $19 {and Black stays clearly on top.} 24. Rb1 Nb4) 24. Rxe5 $2 {[%emt 0:00:00] Now White is beyond hope.} Qxe5 {[%emt 0:00:30]} 25. Bf4 {[%emt 0:00:00]} Qc5 {[%emt 0:01:00]} 26. Rb1 {[%emt 0:00:00]} a6 {[%emt 0:02:30]} 27. Be4 {[%emt 0:00:00] aiming for Qb3.} b6 {[%emt 0:00:30]} 28. Qb3 {[%emt 0:00:00]} Ba5 {[%emt 0:01:30]} 29. Bc1 {[%emt 0:00:00]} f5 {[%emt 0:04:55]} 30. Ba3 {[%emt 0:00:00]} Qe5 {[%emt 0:00:30]} 31. Bc6 {[%emt 0:00:00]} d3 {[%emt 0:06:02]} 32. cxd3 {[%emt 0:00:00]} Qe2 {[%emt 0:00:40]} 33. Bd5 $2 {[%emt 0:00:00]} (33. Qd1 Qxd3 34. Qxd3 Rxd3 35. Be7) 33... Be1 {[%emt 0:01:08] Weighted Error Value: White=0.45/Black=0.33} 0-1

[Event "Marmaris Icmeler-IM May 2022"]
[Site "Icmeler"]
[Date "2022.05.08"]
[Round "8.4"]
[White "Huseyinoglu, Alihan"]
[Black "Kilic, Eray"]
[Result "1-0"]
[ECO "E51"]
[WhiteElo "2278"]
[BlackElo "2192"]
[Annotator "TA"]
[PlyCount "149"]
[EventDate "2022.05.05"]
[EventType "schev"]
[EventCountry "TUR"]
[SourceTitle "playchess.com"]
[Source "ChessBase"]
[SourceQuality "1"]
[TimeControl "5400+30"]

{[%evp 11,149,0,0,0,10,0,18,3,10,7,13,0,15,15,11,14,17,17,32,27,29,22,24,29,38,12,14,10,14,27,3,0,0,0,25,19,18,22,13,32,33,33,57,62,63,83,189,188,251,250,392,301,291,98,106,102,129,97,167,166,307,131,127,125,482,476,460,386,383,381,360,345,386,207,197,183,191,173,189,189,194,191,191,194,233,226,236,219,527,512,479,464,464,464,674,658,597,579,756,755,1274,1209,29976,29972,29971,29972,29970,29973,29970,29971,29977,29977,29986,29973,29988,29985,29983,29977,29983,29963,29982,29982,29982,29940,29983,29984,29984,29981,29985,29984,29986,29987,29987,29985,29988,29987,29988,29987,29987,29988]} 1. d4 {[%emt 0:02:00]} Nf6 {[%emt 0:01:00]} 2. c4 {[%emt 0:00:00]} e6 {[%emt 0:00:00]} 3. Nc3 {[%emt 0:00:00]} Bb4 {[%emt 0:00:00]} 4. e3 {[%emt 0:00:30]} O-O {[%emt 0:00:30]} 5. Bd2 {[%emt 0:00:30]} d5 {[%emt 0:00:30]} 6. Nf3 {[%emt 0:00:30]} Nbd7 {[%emt 0:01:30]} 7. Rc1 {[%emt 0:04:30] now supersedes 7.Bd3. E51: Nimzo-Indian: Rubinstein: 4...0-0 5 Nf3 d5.} c6 {[%emt 0:01:30]} 8. Bd3 {[%emt 0:07:30]} Qe7 {[%emt 0:06:30]} 9. O-O {[%emt 0:14:30] The position is equal.} dxc4 {[%emt 0:03:30]} 10. Bxc4 {[%emt 0:00:30]} e5 {[%emt 0:00:30]} 11. Qc2 {[%emt 0:06:30]} Bd6 {[%emt 0:05:30]} 12. h3 {[%emt 0:06:30] [#]} e4 $146 {[%emt 0:11:30]} ({Predecessor:} 12... a5 13. a3 Bc7 14. Ba2 g6 15. Rfe1 Kg7 16. e4 exd4 17. Nxd4 Ne5 18. f4 Bb6 19. Be3 Neg4 20. Nf5+ gxf5 21. Bxb6 Nh6 22. exf5 Qd7 23. g4 {1-0 (23) Bluebaum,M (2642)-Sjugirov,S (2680) Chess.com INT 2022}) 13. Ng5 {[%emt 0:05:30][%cal Rg5e4]} Nb6 {[%emt 0:00:30]} 14. Bb3 {[%emt 0:02:30][%cal Rg5e4]} Bf5 {[%emt 0:00:30]} 15. f3 {[%emt 0:03:30][%cal Rf3e4]} Nbd5 {[%emt 0:00:30]} 16. Ngxe4 {[%emt 0:11:30]} (16. fxe4 Bg6 $15) 16... Nxe4 {[%emt 0:05:30]} 17. Nxe4 {[%emt 0:00:00]} Rae8 {[%emt 0:00:30]} 18. Qd1 {[%emt 0:09:00]} Bxe4 {[%emt 0:01:30]} 19. fxe4 {[%emt 0:00:00]} Qxe4 {[%emt 0:00:00]} 20. Bc2 {[%emt 0:01:00]} Qh4 {[%emt 0:05:00]} 21. Qf3 {[%emt 0:04:30]} Nf6 {[%emt 0:14:30] Inhibits e4.} 22. Be1 {[%emt 0:02:34]} Qg5 {[%emt 0:01:30]} 23. Bf2 {[%emt 0:00:04]} Qd5 {[%emt 0:01:30]} 24. Qxd5 {[%emt 0:04:42]} Nxd5 {[%emt 0:00:30]} 25. e4 {[%emt 0:00:36]} Nf4 {[%emt 0:00:00]} 26. Rce1 {[%emt 0:02:00] Against Ne2+} Bb4 {[%emt 0:07:00]} 27. Re3 {[%emt 0:01:15]} f5 {[%emt 0:00:00]} 28. e5 {[%emt 0:10:06]} (28. exf5 Ne2+ 29. Kh1 Rxe3 30. Bxe3 Ng3+ 31. Kg1 Nxf1 32. Kxf1 Ba5 $15) 28... b6 {[%emt 0:12:00]} (28... Ba5 $16 {is a better defense.}) 29. Rf3 $18 {[%emt 0:01:51]} Ne2+ {[%emt 0:00:30]} (29... g5 $142 30. Be3 Kg7) 30. Kh2 {[%emt 0:00:24]} Bd2 {[%emt 0:07:08]} (30... c5 $142 31. a3 (31. Bxf5 Nxd4 32. Bxd4 cxd4 $14) 31... Bd2) 31. Rd1 {[%emt 0:00:08]} Bh6 {[%emt 0:00:51]} 32. Rxf5 {[%emt 0:01:43] [#]} (32. g3 $18 {has better winning chances.}) 32... g6 {[%emt 0:00:01]} 33. Rf3 {[%emt 0:00:01]} Rd8 {[%emt 0:04:16]} 34. Bd3 {[%emt 0:00:29]} Nf4 {[%emt 0:01:35]} (34... Rxf3 $16 {keeps fighting.} 35. gxf3 Nf4) 35. Be4 {[%emt 0:00:01][%cal Bd3e4,Be4c6,Bc6d7][%mdl 32]} c5 {[%emt 0:00:57]} (35... Nd5 $142 36. Re1 Rxf3 37. Bxf3 Bf4+ 38. g3 Bh6) 36. Be3 {[%emt 0:00:58]} (36. Bc2 $18 {and the rest is easy.}) 36... cxd4 $16 {[%emt 0:01:08]} 37. Rxd4 {[%emt 0:00:03]} Rde8 {[%emt 0:00:24][%mdl 8192] This move loses the game for Black.} (37... Rxd4 $16 {is more resistant.} 38. Bxd4 Ne2) 38. Bc6 $18 {[%emt 0:00:54][%csl LRe8,LRf4] This bishop pair is nice.} Re6 {[%emt 0:02:06]} 39. Bd7 {[%emt 0:00:30][%cal Re3f4]} ({Less strong is} 39. Bxf4 Rxf4 40. Rfxf4 (40. Rdxf4 Bxf4+ 41. Rxf4 Rxc6 $16) 40... Bxf4+ 41. Rxf4 Rxc6 $16) 39... Re7 {[%emt 0:00:16]} 40. e6 {[%emt 0:00:21]} g5 {[%emt 0:01:04]} 41. Re4 {[%emt 0:00:37]} Rd8 {[%emt 0:02:10]} 42. Bxf4 {[%emt 0:00:38]} (42. h4 $142 {And now hxg5 would win.} Ng6 43. Rf5 (43. Bxg5 Bxg5 44. hxg5 Kg7 $18)) 42... gxf4 {[%emt 0:00:01]} 43. Re5 {[%emt 0:00:31]} Bg7 {[%emt 0:00:38]} 44. Rf5 {[%emt 0:00:24]} Bxb2 {[%emt 0:00:44]} 45. R3xf4 {[%emt 0:00:02]} Bc3 {[%emt 0:02:15]} 46. g4 {[%emt 0:00:31]} a6 {[%emt 0:00:09]} 47. Rc4 {[%emt 0:00:39]} Bg7 {[%emt 0:00:42]} 48. Kg2 {[%emt 0:00:48]} h6 {[%emt 0:00:11]} 49. Kf3 {[%emt 0:00:12]} Rdxd7 $2 {[%emt 0:01:13]} (49... b5 {is a better chance.} 50. Rc6 b4 51. Rxa6 Bc3) 50. exd7 {[%emt 0:00:13]} Rxd7 {[%emt 0:00:00][%mdl 4096] Endgame KRR-KRB} 51. a4 {[%emt 0:00:32]} Rd3+ {[%emt 0:00:07]} 52. Kg2 {[%emt 0:00:04]} Rb3 {[%emt 0:00:23]} (52... Rd7 $142 53. Rc6 b5 54. axb5 axb5 55. Rxb5 Kh7) 53. Rc8+ {[%emt 0:00:45]} Kh7 {[%emt 0:00:02]} 54. Rc7 {[%emt 0:00:05] [#] Black must now prevent Rff7.} Kg8 {[%emt 0:00:01]} 55. Rd5 {[%emt 0:00:15]} Bf6 {[%emt 0:00:43]} 56. Rdd7 {[%emt 0:01:03] Intending Rc8+ and mate.} Rb2+ {[%emt 0:00:01]} 57. Kf3 {[%emt 0:00:00] White mates.} Rb3+ {[%emt 0:00:04]} 58. Ke4 {[%emt 0:00:00]} Rc3 {[%emt 0:00:00]} 59. Rxc3 {[%emt 0:00:21]} Bxc3 {[%emt 0:00:01] KR-KB} 60. Rd6 {[%emt 0:00:25][%csl LRb6,LRh6]} b5 {[%emt 0:00:01]} 61. Rxa6 {[%emt 0:00:00]} Kg7 {[%emt 0:00:00]} 62. Kf5 {[%emt 0:00:00]} Bd2 {[%emt 0:00:00]} 63. Ra7+ {[%emt 0:00:08]} Kf8 {[%emt 0:00:00]} 64. Kg6 {[%emt 0:00:12]} Bg5 {[%emt 0:00:00]} 65. Rh7 {[%emt 0:00:08]} Bd2 {[%emt 0:00:00]} 66. Rh8+ {[%emt 0:00:10]} Ke7 {[%emt 0:00:00]} 67. Rxh6 {[%emt 0:00:08]} Bc3 {[%emt 0:00:00]} 68. Rh7+ {[%emt 0:00:42]} Ke6 {[%emt 0:00:00]} 69. h4 {[%emt 0:00:00][%cal Bh3h4,Bh4h5,Bh5h6,Bh6h7][%mdl 32]} Be5 {[%emt 0:00:00]} 70. h5 {[%emt 0:00:00]} Bf6 {[%emt 0:00:00]} 71. g5 {[%emt 0:00:02]} Be5 {[%emt 0:00:03]} 72. h6 {[%emt 0:00:05]} Kd5 {[%emt 0:00:02]} 73. Re7 {[%emt 0:00:38]} Bc3 {[%emt 0:00:01]} 74. h7 {[%emt 0:00:00]} Bh8 {[%emt 0:00:03]} 75. Re8 {[%emt 0:00:00] Weighted Error Value: White=0.18 (very precise) /Black=0.55} 1-0